bitfinex-derivatives/quotes_SOLF0:USTF0_20250224
["timestamp","ask_amount","ask_price","bid_price","bid_amount"]
[1740397155022,6.302,158.65,158.63,0.04721871]
[1740397155425,0.04704567,158.67,158.63,0.04721871]
[1740397155826,6.3021,158.64,158.63,0.04721871]
[1740397157829,6.3021,158.64,158.63,1.871e-05]
[1740397158925,28.62368581,158.64,158.63,1.871e-05]
[1740397159928,45.76515664,158.64,158.51,22.32158581]
[1740397160136,22.32158581,158.6,158.51,22.32158581]
[1740397160334,1.8483,158.59,158.51,22.32158581]
[1740397160740,1.8483,158.59,158.49,22.32158581]
[1740397161040,0.0465273,158.56,158.52,0.04843426]
[1740397161435,6.3065,158.53,158.52,0.04843426]
[1740397171757,22.36811311,158.56,158.52,0.04843426]
[1740397171946,0.0465273,158.56,158.52,0.04843426]
[1740397172350,6.3063,158.54,158.52,0.04843426]
[1740397174358,0.0465273,158.56,158.52,0.04843426]
[1740397174559,6.3065,158.53,158.52,0.04843426]
[1740397181669,6.3065,158.53,158.52,14.35419683]
[1740397181869,6.3061,158.54,158.52,14.35419683]
[1740397182665,6.3059,158.55,158.52,20.66109683]
[1740397182861,0.0465273,158.56,158.54,14.30576257]
[1740397183369,0.0465273,158.56,158.54,20.61166257]
[1740397183562,0.0465273,158.56,158.54,28.64164074]
[1740397184774,0.0465273,158.56,158.55,6.3057]
[1740397185767,6.3035,158.61,158.57,6.3049]
[1740397185969,10.18,158.67,158.57,22.33574074]
[1740397186463,6.3044,158.59,158.53,26.27864074]
[1740397186871,0.04706089,158.58,158.55,6.3055]
[1740397187673,0.04706089,158.58,158.54,0.0415944]
[1740397187674,6.35166089,158.58,158.54,0.0415944]
[1740397187870,6.35166089,158.58,158.54,6.3475944]
[1740397188073,26.16354074,158.68,158.57,22.33574074]
[1740397188265,3.8278,158.68,158.59,28.63954074]
[1740397188664,6.3028,158.63,158.59,28.63954074]
[1740397189176,6.34829791,158.63,158.59,28.68523918]
[1740397189570,0.04549791,158.63,158.59,0.04569844]
[1740397190372,6.3037,158.6,158.59,0.04569844]
[1740397193478,0.04549791,158.63,158.59,0.04569844]
[1740397193877,0.04549791,158.63,158.59,22.38143918]
[1740397194176,0.04549791,158.63,158.59,0.04569844]
[1740397194779,6.3037,158.6,158.59,0.04569844]
[1740397195577,0.04549791,158.63,158.59,0.04569844]
[1740397197278,6.3037,158.6,158.59,0.04569844]
[1740397198378,0.04549791,158.63,158.59,0.04569844]
[1740397198684,0.04549791,158.63,158.59,22.38143918]
[1740397199777,0.04549791,158.63,158.59,0.04569844]
[1740397201280,104.88725706,158.75,158.61,22.33574074]
[1740397201483,104.88725706,158.75,158.65,22.33574074]
[1740397201484,2.99250397,158.74,158.65,22.33574074]
[1740397201685,1.8712,158.74,158.65,22.33574074]
[1740397201988,6.2992,158.72,158.66,6.3012]
[1740397202196,106.75845706,158.74,158.67,22.33574074]
[1740397202377,0.04287207,158.72,158.69,6.34815987]
[1740397202577,0.04287207,158.72,158.71,22.33574074]
[1740397203489,104.88725706,158.74,158.71,22.33574074]
[1740397203683,104.88725706,158.74,158.73,22.33574074]
[1740397206389,0.04211028,158.75,158.73,22.33574074]
[1740397207087,0.04211028,158.75,158.74,6.2982]
[1740397208487,166.9993,158.83,158.73,22.33574074]
[1740397208688,383.51511888,158.92,158.79,22.33574074]
[1740397208883,1.12036148,158.88,158.79,22.33574074]
[1740397209288,1.12036148,158.88,158.81,22.33574074]
[1740397209489,6.2935,158.86,158.81,22.33574074]
[1740397209690,0.04808455,158.86,158.83,0.0411295]
[1740397210488,0.04808455,158.86,158.83,6.3354295]
[1740397211492,0.04808455,158.86,158.83,0.0411295]
[1740397213296,6.34178455,158.86,158.83,0.0411295]
[1740397213501,0.04808455,158.86,158.83,0.0411295]
[1740397214798,0.04808455,158.86,158.83,22.37687024]
[1740397215102,0.04808455,158.86,158.85,22.33574074]
[1740397215905,0.04808455,158.86,158.83,22.37687024]
[1740397216802,0.04808455,158.86,158.83,28.67117024]
[1740397217807,0.04808455,158.86,158.83,22.37687024]
[1740397218606,6.2942,158.84,158.83,0.0411295]
[1740397219407,6.2939,158.85,158.83,0.0411295]
[1740397219709,0.04808455,158.86,158.83,22.37687024]
[1740397220208,6.34168455,158.86,158.83,22.37687024]
[1740397220508,6.34168455,158.86,158.85,22.33574074]
[1740397220700,0.04808455,158.86,158.85,22.33574074]
[1740397222002,6.34148455,158.86,158.83,22.37687024]
[1740397222196,0.04808455,158.86,158.83,22.37687024]
[1740397222395,0.04808455,158.86,158.85,22.33574074]
[1740397224707,0.04808455,158.86,158.85,28.62954074]
[1740397225306,6.292,158.9,158.87,6.293]
[1740397225501,5.7598,158.95,158.88,22.33574074]
[1740397225701,6.2913,158.92,158.88,28.62834074]
[1740397226003,5.7598,158.95,158.88,28.62834074]
[1740397226310,5.7598,158.95,158.88,22.33574074]
[1740397226506,0.04607981,158.93,158.9,0.04618106]
[1740397227312,6.2917,158.91,158.9,0.04618106]
[1740397229213,0.04607981,158.93,158.9,0.04618106]
[1740397229214,6.2912,158.92,158.9,0.04618106]
[1740397229412,0.04607981,158.93,158.9,0.04618106]
[1740397229814,6.33677981,158.93,158.9,0.04618106]
[1740397230910,0.04607981,158.93,158.9,6.33798106]
[1740397231408,6.2889,158.98,158.93,6.2902]
[1740397231613,6.2889,158.98,158.94,22.33574074]
[1740397232215,104.88725706,159.1,158.96,44.67148148]
[1740397232517,104.88725706,159.1,159.08,22.33574074]
[1740397232914,104.88725706,159.1,159.03,22.33574074]
[1740397233121,104.88725706,159.1,159.07,0.04774626]
[1740397233319,0.04016796,159.08,159.01,22.33574074]
[1740397233620,32.5359087,159.08,158.97,24.20004074]
[1740397233815,32.49574074,159.08,158.97,24.20004074]
[1740397234015,22.33574074,159.06,158.95,22.33574074]
[1740397234217,22.33574074,159.04,158.93,22.33574074]
[1740397234514,6.288,159.0,158.99,0.04638637]
[1740397234714,10.16,159.0,158.9,24.15914074]
[1740397234909,10.16,159.0,158.9,22.33574074]
[1740397234910,1.8522,158.99,158.9,22.33574074]
[1740397235319,6.2895,158.96,158.9,22.33574074]
[1740397235920,0.04687101,158.95,158.91,0.04320862]
[1740397236924,0.04687101,158.95,158.94,22.33574074]
[1740397237113,10.16,159.04,158.96,22.33574074]
[1740397237419,1.8673,159.07,158.98,22.33574074]
[1740397237624,23.45465274,159.06,158.96,22.33574074]
[1740397237825,22.33574074,159.06,158.94,22.33574074]
[1740397238028,6.2883,158.99,158.94,22.33574074]
[1740397238225,6.2883,158.99,158.98,0.04286688]
[1740397238520,6.2883,158.99,158.92,22.33574074]
[1740397238725,6.2887,158.98,158.92,22.33574074]
[1740397239226,22.33574074,159.02,158.92,22.33574074]
[1740397239618,0.04449445,158.99,158.95,0.04368892]
[1740397239924,6.2894,158.97,158.95,0.04368892]
[1740397240325,0.04449445,158.99,158.95,0.04368892]
[1740397242226,0.04449445,158.99,158.92,22.33574074]
[1740397243231,0.04449445,158.99,158.9,22.33574074]
[1740397243532,24.19344074,159.0,158.94,0.04560728]
[1740397243727,6.2899,158.95,158.94,0.04560728]
[1740397244129,0.04058216,158.96,158.9,22.33574074]
[1740397244831,6.29,158.95,158.9,28.62754074]
[1740397245029,0.04058216,158.96,158.9,22.33574074]
[1740397245428,6.2905,158.94,158.91,0.04609488]
[1740397245829,6.33028216,158.96,158.92,6.2909]
[1740397246036,0.04058216,158.96,158.91,0.04609488]
[1740397246340,0.04058216,158.96,158.92,6.291]
[1740397246634,0.04058216,158.96,158.92,22.33574074]
[1740397247232,0.04058216,158.96,158.93,6.2906]
[1740397247731,6.33028216,158.96,158.92,22.33574074]
[1740397248034,0.04058216,158.96,158.91,0.04609488]
[1740397249238,6.2909,158.93,158.91,0.04609488]
[1740397249736,6.291,158.92,158.91,0.04609488]
[1740397252640,6.2921,158.9,158.86,22.33574074]
[1740397252938,1.8484,158.95,158.86,22.33574074]
[1740397253340,6.2917,158.91,158.86,28.62874074]
[1740397253638,1.8484,158.95,158.86,28.62874074]
[1740397253847,0.04472192,158.9,158.87,0.04622285]
[1740397255243,0.04472192,158.9,158.88,6.2923]
[1740397258644,0.04472192,158.9,158.89,6.2922]
[1740397261349,3.9584,158.99,158.92,6.2908]
[1740397261547,3.9584,158.99,158.9,22.33574074]
[1740397262149,6.2894,158.97,158.93,6.2903]
[1740397262652,0.04588683,158.97,158.93,0.0461425]
[1740397262848,0.04588683,158.97,158.94,6.2899]
[1740397263050,0.04588683,158.97,158.93,0.0461425]
[1740397263254,0.04588683,158.97,158.95,6.2898]
[1740397263753,0.04588683,158.97,158.93,0.0461425]
[1740397263957,6.33508683,158.97,158.94,6.2901]
[1740397266455,0.04588683,158.97,158.94,6.2901]
[1740397267061,0.04588683,158.97,158.96,6.2895]
[1740397267453,0.04588683,158.97,158.93,0.0461425]
[1740397267950,0.04588683,158.97,158.93,22.38188324]
[1740397268152,0.04588683,158.97,158.96,6.2895]
[1740397269155,0.04588683,158.97,158.95,22.33574074]
[1740397269361,0.04588683,158.97,158.93,0.0461425]
[1740397270162,6.2895,158.96,158.93,0.0461425]
[1740397270665,0.04588683,158.97,158.93,0.0461425]
[1740397270862,6.2899,158.95,158.93,0.0461425]
[1740397271359,6.33508683,158.97,158.93,6.3366425]
[1740397271559,6.33508683,158.97,158.93,28.67238324]
[1740397271965,0.04588683,158.97,158.93,6.3366425]
[1740397272460,0.04588683,158.97,158.94,6.29]
[1740397273562,0.04588683,158.97,158.95,6.2899]
[1740397273762,0.04588683,158.97,158.93,0.0461425]
[1740397275473,32.47574074,158.96,158.86,1.873]
[1740397276371,6.2913,158.92,158.88,6.2924]
[1740397276572,0.04089587,158.93,158.89,0.04160921]
[1740397277472,6.33169587,158.93,158.89,6.33380921]
[1740397278069,6.2918,158.9,158.89,0.04160921]
[1740397278273,0.04089587,158.93,158.89,0.04160921]
[1740397279362,6.33169587,158.93,158.89,6.33380921]
[1740397280169,0.04089587,158.93,158.89,0.04160921]
[1740397280370,0.04089587,158.93,158.9,22.33574074]
[1740397280670,0.04089587,158.93,158.89,0.04160921]
[1740397280671,104.88725706,159.03,158.92,22.33574074]
[1740397280866,104.88725706,159.03,158.88,34.92084074]
[1740397280867,104.88725706,159.03,158.96,22.33574074]
[1740397281870,0.04522903,159.01,158.98,0.04590269]
[1740397282270,0.04522903,159.01,159.0,6.2879]
[1740397282666,0.04522903,159.01,158.98,0.04590269]
[1740397282873,6.2879,159.0,158.98,0.04590269]
[1740397283565,0.04522903,159.01,158.98,0.04590269]
[1740397285367,6.2882,159.0,158.98,0.04590269]
[1740397286072,6.2883,158.99,158.98,0.04590269]
[1740397286272,0.04522903,159.01,158.98,0.04590269]
[1740397287077,6.288,159.0,158.98,0.04590269]
[1740397288079,0.04522903,159.01,158.98,0.04590269]
[1740397288571,0.04522903,159.01,159.0,6.2879]
[1740397290469,0.04522903,159.01,159.0,28.62364074]
[1740397291982,6.285,159.08,159.0,22.33574074]
[1740397292182,6.285,159.08,159.03,22.33574074]
[1740397292883,6.2844,159.09,159.05,22.33574074]
[1740397293181,0.04402138,159.07,159.05,22.33574074]
[1740397293576,0.04402138,159.07,159.06,6.2855]
[1740397297079,2.138e-05,159.07,159.06,6.2855]
[1740397297479,2.138e-05,159.07,159.05,22.33574074]
[1740397297480,6.2836,159.11,159.05,22.33574074]
[1740397297685,6.2836,159.11,159.08,28.62044074]
[1740397298583,6.3260439,159.11,159.08,28.66689038]
[1740397298981,6.2843,159.09,159.08,0.04644964]
[1740397301291,6.2851,159.08,159.04,22.33574074]
[1740397301593,22.33574074,159.13,159.03,6.2865]
[1740397301994,1.11847693,159.12,159.03,6.2865]
[1740397302394,6.2853,159.07,159.06,0.04426165]
[1740397304691,0.04010757,159.09,159.0,22.33574074]
[1740397304900,1.8778,159.08,158.98,22.33574074]
[1740397305190,1.818,159.07,158.98,22.33574074]
[1740397305391,6.2873,159.02,158.98,28.62434074]
[1740397305895,6.33340305,159.02,158.98,28.66496589]
[1740397307896,6.2875,159.01,158.98,28.66496589]
[1740397308293,6.2875,159.01,158.98,22.37636589]
[1740397308698,0.04610305,159.02,158.98,22.37636589]
[1740397308699,6.2883,158.99,158.98,0.04062515]
[1740397311391,6.2892,158.97,158.94,28.62594074]
[1740397311795,6.2892,158.97,158.94,22.33574074]
[1740397312301,6.2901,158.95,158.92,22.33574074]
[1740397312697,6.333187,158.95,158.92,22.38244474]
[1740397312896,0.043087,158.95,158.92,22.38244474]
[1740397313093,6.2905,158.94,158.92,22.38244474]
[1740397313505,0.043087,158.95,158.92,0.046704]
[1740397313805,22.37882774,158.95,158.85,22.33574074]
[1740397314003,22.33574074,158.95,158.85,22.33574074]
[1740397314301,6.2917,158.91,158.87,22.33574074]
[1740397314805,6.2919,158.9,158.87,22.33574074]
[1740397315101,0.04102258,158.91,158.87,22.38167701]
[1740397315292,0.04102258,158.91,158.87,22.33574074]
[1740397315493,0.04102258,158.91,158.87,22.38287609]
[1740397315690,0.04102258,158.91,158.88,6.2925]
[1740397315898,0.04102258,158.91,158.87,22.38287609]
[1740397316297,6.33262258,158.91,158.87,28.67567609]
[1740397316496,6.33262258,158.91,158.87,22.38287609]
[1740397316700,0.04102258,158.91,158.87,22.38287609]
[1740397316901,6.2919,158.9,158.87,22.38287609]
[1740397317198,0.04102258,158.91,158.87,22.38287609]
[1740397317406,6.33252258,158.91,158.87,28.67567609]
[1740397317705,6.33252258,158.91,158.87,22.38287609]
[1740397317706,0.04102258,158.91,158.87,22.38287609]
[1740397318099,6.2925,158.89,158.87,22.38287609]
[1740397318511,0.04102258,158.91,158.87,0.04713535]
[1740397318708,6.2926,158.88,158.87,0.04713535]
[1740397318907,0.04102258,158.91,158.87,0.04713535]
[1740397320106,6.2924,158.89,158.87,0.04713535]
[1740397320307,0.04102258,158.91,158.87,0.04713535]
[1740397321707,6.2926,158.88,158.87,0.04713535]
[1740397324112,6.2936,158.86,158.82,6.2948]
[1740397324908,1.858,158.89,158.81,22.33574074]
[1740397325107,1.858,158.89,158.83,22.33574074]
[1740397325310,0.0480122,158.87,158.83,22.37847402]
[1740397325705,0.0480122,158.87,158.84,6.2941]
[1740397325906,0.0480122,158.87,158.83,22.37847402]
[1740397326213,0.0480122,158.87,158.85,22.33574074]
[1740397327009,6.291,158.93,158.85,22.33574074]
[1740397327205,6.291,158.93,158.89,22.33574074]
[1740397327801,6.291,158.93,158.9,6.2916]
[1740397328311,6.33848057,158.93,158.9,6.33614975]
[1740397328913,0.04748057,158.93,158.92,6.291]
[1740397329111,2.0029,159.0,158.91,22.33574074]
[1740397329411,24.33864074,159.0,158.9,22.33574074]
[1740397329610,24.33864074,159.0,158.88,22.33574074]
[1740397329807,6.2906,158.94,158.9,6.2918]
[1740397330014,24.33864074,159.0,158.88,22.33574074]
[1740397330215,0.0471945,158.96,158.92,0.04046285]
[1740397330917,6.2899,158.95,158.92,0.04046285]
[1740397331320,0.0471945,158.96,158.92,22.37620359]
[1740397331617,0.0471945,158.96,158.94,6.29]
[1740397332817,0.0471945,158.96,158.92,22.37620359]
[1740397333018,0.0471945,158.96,158.92,0.04046285]
[1740397333208,6.2899,158.95,158.92,0.04046285]
[1740397333410,0.0471945,158.96,158.92,0.04046285]
[1740397333916,0.0471945,158.96,158.92,22.37620359]
[1740397335116,0.0471945,158.96,158.94,22.33574074]
[1740397335620,0.0471945,158.96,158.95,6.2899]
[1740397337124,8.2624,159.01,158.98,6.2885]
[1740397338125,1.9748,159.01,158.97,28.62464074]
[1740397338312,1.9748,159.01,158.93,2.0051]
[1740397338313,6.288,159.0,158.98,0.04028935]
[1740397338825,6.2883,158.99,158.98,0.04028935]
[1740397346324,6.288,159.0,158.98,0.04028935]
[1740397346526,2.01621699,159.01,158.98,0.04028935]
[1740397347125,8.30391699,159.01,158.98,0.04028935]
[1740397347326,6.32911699,159.01,158.98,0.04028935]
[1740397348023,0.04141699,159.01,158.99,6.2879]
[1740397349225,0.04141699,159.01,158.99,28.62364074]
[1740397351619,0.04141699,159.01,158.99,22.33574074]
[1740397351824,0.04141699,159.01,159.0,6.2879]
[1740397355933,0.04141699,159.01,158.99,28.62394074]
[1740397356234,0.04141699,159.01,158.98,0.04028935]
[1740397356633,6.2881,159.0,158.98,0.04028935]
[1740397356827,0.04141699,159.01,158.98,0.04028935]
[1740397357235,3.71441699,159.01,158.98,0.04028935]
[1740397358430,6.2883,158.99,158.98,0.04028935]
[1740397358832,3.71441699,159.01,158.91,22.33574074]
[1740397359035,6.2901,158.95,158.91,28.62684074]
[1740397359225,22.33574074,159.0,158.91,22.33574074]
[1740397359429,22.33574074,159.0,158.89,22.33574074]
[1740397359733,6.2903,158.94,158.89,22.33574074]
[1740397360136,6.2903,158.94,158.93,0.04683242]
[1740397360440,0.04070627,158.96,158.93,0.04683242]
[1740397361738,6.2902,158.94,158.93,0.04683242]
[1740397368838,1.9688,158.95,158.93,0.04683242]
[1740397369143,0.04070627,158.96,158.93,22.38257316]
[1740397369938,0.04070627,158.96,158.95,6.2899]
[1740397371345,0.04070627,158.96,158.93,22.38257316]
[1740397371938,0.04070627,158.96,158.95,6.2899]
[1740397376242,0.04070627,158.96,158.94,6.2901]
[1740397377646,0.04070627,158.96,158.94,20.5158417]
[1740397378946,0.04070627,158.96,158.95,6.2899]
[1740397384659,0.04070627,158.96,158.94,14.2257417]
[1740397384853,0.04070627,158.96,158.94,6.2902]
[1740397385054,0.04070627,158.96,158.93,0.04683242]
[1740397385547,6.33050627,158.96,158.93,0.04683242]
[1740397385750,0.04070627,158.96,158.93,0.04683242]
[1740397386657,6.2901,158.95,158.93,0.04683242]
[1740397387858,6.2902,158.94,158.93,0.04683242]
[1740397392361,0.04070627,158.96,158.95,6.2899]
[1740397392555,0.04070627,158.96,158.95,20.5156417]
[1740397393356,0.04070627,158.96,158.95,14.2257417]
[1740397393555,0.04070627,158.96,158.93,14.27257412]
[1740397394056,6.2901,158.95,158.93,14.27257412]
[1740397394250,0.04070627,158.96,158.93,14.27257412]
[1740397394655,6.2899,158.95,158.93,14.27257412]
[1740397394859,0.04070627,158.96,158.93,14.27257412]
[1740397396661,6.33040627,158.96,158.93,14.27257412]
[1740397399665,6.2899,158.95,158.93,14.27257412]
[1740397400663,6.2902,158.94,158.93,0.04683242]
[1740397409277,6.2918,158.9,158.89,14.2257417]
[1740397409468,6.2918,158.9,158.87,14.2257417]
[1740397409667,6.2923,158.89,158.87,14.2257417]
[1740397409966,14.2257417,158.93,158.87,14.2257417]
[1740397410373,6.2925,158.89,158.88,0.04028938]
[1740397412576,0.04429806,158.92,158.88,0.04028938]
[1740397413371,6.2918,158.91,158.88,0.04028938]
[1740397414272,0.04429806,158.92,158.89,14.2257417]
[1740397414773,0.04429806,158.92,158.9,6.2918]
[1740397419377,6.2922,158.89,158.88,0.04028938]
[1740397419681,14.2257417,158.89,158.82,14.2257417]
[1740397420178,6.2938,158.85,158.82,14.2257417]
[1740397420488,14.2257417,158.87,158.82,14.2257417]
[1740397420672,0.04526857,158.85,158.82,0.04244396]
[1740397420880,6.2946,158.83,158.82,0.04244396]
[1740397421172,14.27101027,158.85,158.73,1.8973]
[1740397421378,6.2971,158.77,158.74,14.2257417]
[1740397421575,6.2971,158.77,158.73,16.1230417]
[1740397422176,14.2257417,158.81,158.75,14.2257417]
[1740397422382,10.14,158.83,158.79,14.2257417]
[1740397422779,6.2965,158.79,158.76,14.2257417]
[1740397423174,14.2257417,158.79,158.76,0.04469253]
[1740397423575,6.2971,158.77,158.76,0.04469253]
[1740397423776,14.2257417,158.79,158.73,14.2257417]
[1740397424981,6.2974,158.77,158.74,0.02451286]
[1740397425379,0.04830835,158.78,158.74,0.02451286]
[1740397425582,6.2974,158.76,158.74,0.02451286]
[1740397426180,6.2978,158.75,158.74,0.02451286]
[1740397426377,14.2257417,158.77,158.71,14.2257417]
[1740397426980,1.8628,158.79,158.69,14.2257417]
[1740397426981,14.2257417,158.75,158.69,14.2257417]
[1740397427170,14.2257417,158.77,158.71,14.2257417]
[1740397427375,6.2985,158.74,158.71,14.2257417]
[1740397427580,0.04397315,158.76,158.7,14.2257417]
[1740397427975,6.2985,158.74,158.7,14.2257417]
[1740397428782,6.2987,158.73,158.7,14.2257417]
[1740397429582,6.2988,158.73,158.7,14.2257417]
[1740397430381,0.04397315,158.76,158.7,14.2257417]
[1740397431075,6.2985,158.74,158.72,14.2257417]
[1740397432080,0.04284188,158.75,158.72,14.2257417]
[1740397432386,0.04284188,158.75,158.74,14.2257417]
[1740397432573,1.8628,158.79,158.74,14.2257417]
[1740397432884,6.2972,158.77,158.76,14.2257417]
[1740397433184,1.8628,158.79,158.74,14.2257417]
[1740397433185,6.2977,158.76,158.74,14.2257417]
[1740397434390,6.2986,158.73,158.69,6.2998]
[1740397434679,6.2986,158.73,158.72,14.2257417]
[1740397434983,6.3403685,158.73,158.72,14.2257417]
[1740397435384,6.2994,158.71,158.7,14.2257417]
[1740397436685,0.0417685,158.73,158.7,14.2257417]
[1740397436886,6.2991,158.72,158.7,14.2257417]
[1740397437279,0.0417685,158.73,158.7,14.2257417]
[1740397437485,6.299,158.72,158.7,14.2257417]
[1740397437884,0.0417685,158.73,158.7,14.2257417]
[1740397438084,6.299,158.72,158.7,14.2257417]
[1740397438280,0.0417685,158.73,158.7,14.2257417]
[1740397438779,6.2997,158.71,158.68,14.2257417]
[1740397439588,6.2995,158.71,158.68,14.2257417]
[1740397439790,0.0417685,158.73,158.6,0.2347]
[1740397440088,14.2257417,158.73,158.68,14.2257417]
[1740397440385,6.3,158.7,158.68,14.2257417]
[1740397440791,0.04403102,158.72,158.68,14.2257417]
[1740397441085,0.04403102,158.72,158.71,14.2257417]
[1740397441285,14.2257417,158.77,158.71,14.2257417]
[1740397441486,0.04093324,158.73,158.71,14.2257417]
[1740397442087,0.04093324,158.73,158.72,6.299]
[1740397442483,1.8628,158.79,158.71,14.2257417]
[1740397442683,6.2974,158.76,158.75,14.2257417]
[1740397443486,1.8628,158.79,158.73,14.2257417]
[1740397443691,0.03975581,158.77,158.73,14.2257417]
[1740397443993,0.03975581,158.77,158.74,0.04093324]
[1740397444387,6.2977,158.76,158.74,0.04093324]
[1740397444591,0.03975581,158.77,158.74,0.04093324]
[1740397445089,14.2257417,158.76,158.61,1.9774]
[1740397445386,6.2996,158.71,158.68,14.2257417]
[1740397446290,0.04786666,158.71,158.7,14.2257417]
[1740397446486,14.2257417,158.78,158.7,14.2257417]
[1740397446688,14.2257417,158.78,158.73,14.2257417]
[1740397446882,6.2982,158.74,158.7,6.2998]
[1740397447088,14.2257417,158.76,158.7,14.2257417]
[1740397447291,0.04840522,158.74,158.7,14.2257417]
[1740397449493,6.2994,158.71,158.7,14.2257417]
[1740397453702,6.3002,158.69,158.67,6.3007]
[1740397453901,6.3002,158.69,158.68,14.2257417]
[1740397455905,6.301,158.67,158.66,14.2257417]
[1740397456406,6.3017,158.65,158.64,14.2257417]
[1740397458606,6.34778146,158.66,158.64,14.2257417]
[1740397459606,14.27202316,158.66,158.56,107.46718013]
[1740397459909,14.2257417,158.62,158.56,107.46718013]
[1740397460302,14.2257417,158.6,158.56,93.24143843]
[1740397460506,0.03976526,158.61,158.58,14.2257417]
[1740397461210,6.3038,158.6,158.58,14.2257417]
[1740397462708,0.03976526,158.61,158.58,14.2257417]
[1740397463011,6.3041,158.59,158.58,14.2257417]
[1740397463308,0.03976526,158.61,158.56,14.2257417]
[1740397464506,6.3046,158.58,158.57,14.2257417]
[1740397466810,0.03976526,158.61,158.57,14.2257417]
[1740397467508,0.03976526,158.61,158.55,14.2257417]
[1740397467807,14.2257417,158.6,158.55,14.2257417]
[1740397468508,14.2257417,158.58,158.53,14.2257417]
[1740397468707,14.2257417,158.58,158.51,14.2257417]
[1740397468907,0.04673643,158.57,158.48,1.8344]
[1740397469105,6.3064,158.54,158.52,14.2257417]
[1740397469711,6.3058,158.55,158.52,14.2257417]
[1740397470203,0.04673643,158.57,158.52,14.2257417]
[1740397470913,6.306,158.55,158.52,14.2257417]
[1740397471104,0.04673643,158.57,158.52,14.2257417]
[1740397471509,6.3057,158.55,158.52,14.2257417]
[1740397471808,0.04673643,158.57,158.52,14.2257417]
[1740397472714,6.306,158.55,158.52,14.2257417]
[1740397474815,0.04673643,158.57,158.44,10.4035]
[1740397475014,6.3064,158.54,158.51,20.5329417]
[1740397475316,0.04397633,158.52,158.51,20.5329417]
[1740397486221,6.3053,158.57,158.54,6.3058]
[1740397486421,6.305,158.57,158.55,14.2257417]
[1740397487628,6.305,158.57,158.55,20.5312417]
[1740397490428,0.03982935,158.58,158.55,14.2257417]
[1740397495336,0.03982935,158.58,158.57,14.2257417]
[1740397495639,1.8741,158.63,158.57,14.2257417]
[1740397495931,1.8741,158.63,158.61,14.2257417]
[1740397496231,14.2257417,158.66,158.61,14.2257417]
[1740397496836,3.92845646,158.65,158.61,14.26948266]
[1740397499436,0.04725646,158.65,158.63,14.2257417]
[1740397503142,0.04725646,158.65,158.61,14.26948266]
[1740397503342,14.27299816,158.65,158.61,0.04374096]
[1740397504339,0.04725646,158.65,158.61,14.26948266]
[1740397504642,0.04725646,158.65,158.63,14.2257417]
[1740397505935,0.04725646,158.65,158.61,0.04374096]
[1740397506143,0.04725646,158.65,158.61,14.26948266]
[1740397506542,0.04725646,158.65,158.63,14.2257417]
[1740397513956,0.04725646,158.65,158.61,14.26948266]
[1740397515256,14.27299816,158.65,158.61,14.26948266]
[1740397515658,14.27299816,158.65,158.61,0.04374096]
[1740397515858,3.8849,158.64,158.61,0.04374096]
[1740397516257,14.2257417,158.56,158.47,8.61807291]
[1740397516460,14.2257417,158.54,158.49,14.2257417]
[1740397517156,14.2257417,158.54,158.47,22.84381461]
[1740397517355,14.2257417,158.52,158.5,0.04006471]
[1740397517760,14.2257417,158.52,158.47,8.61807291]
[1740397517958,14.2257417,158.5,158.47,8.61807291]
[1740397518655,14.2257417,158.48,158.47,8.61807291]
[1740397519164,14.2257417,158.48,158.47,5.59807291]
[1740397519359,14.2257417,158.48,158.47,2.57807291]
[1740397519559,22.42191617,158.49,158.47,2.57807291]
[1740397520152,22.42191617,158.49,158.45,67.71583447]
[1740397520153,24.33661617,158.49,158.34,220.10367687]
[1740397520358,24.33661617,158.49,158.34,28.10367687]
[1740397521160,24.33661617,158.49,158.4,22.85624794]
[1740397521355,1.9582557,158.49,158.4,22.85624794]
[1740397521559,6.3086,158.48,158.42,6.3106]
[1740397521757,0.0435557,158.49,158.42,22.37836047]
[1740397521957,0.0435557,158.49,158.47,6.3088]
[1740397522359,0.0435557,158.49,158.46,22.37836047]
[1740397522561,22.37836047,158.6,158.48,22.37836047]
[1740397522759,22.37836047,158.61,158.51,22.37836047]
[1740397522955,22.37836047,158.59,158.49,24.19506047]
[1740397523154,6.3065,158.54,158.49,24.19506047]
[1740397523359,22.37836047,158.59,158.49,24.19506047]
[1740397523662,0.04242402,158.56,158.52,0.04288355]
[1740397523857,0.04242402,158.56,158.49,24.19506047]
[1740397524058,0.04242402,158.56,158.52,0.04355571]
[1740397524355,6.3065,158.53,158.52,0.04355571]
[1740397528665,6.3065,158.53,158.52,5.571e-05]
[1740397539472,6.3063,158.54,158.52,5.571e-05]
[1740397540775,6.3065,158.53,158.52,5.571e-05]
[1740397541274,28.68486047,158.53,158.52,5.571e-05]